bitfinex-derivatives/quotes_BTCF0:USTF0_20251202
["timestamp","ask_amount","ask_price","bid_price","bid_amount"]
[1764701068340,0.00016298,92002.0,92001.0,0.1604179]
[1764701068545,0.00016298,92002.0,92001.0,0.5212179]
[1764701069648,0.0108654,92023.0,92020.0,0.14955]
[1764701069943,0.51966,92021.0,92020.0,0.14955]
[1764701070950,0.3608,92029.0,92020.0,0.14955]
[1764701071138,0.3608,92029.0,92011.0,0.00016298]
[1764701071139,0.01102748,92030.0,92029.0,0.14955]
[1764701071339,0.16988748,92030.0,92029.0,0.14955]
[1764701071540,0.00016298,92030.0,92029.0,0.14955]
[1764701071740,0.21988748,92030.0,92029.0,0.14955]
[1764701071943,0.1697256,92021.0,92020.0,0.15055]
[1764701072244,0.1697256,92021.0,92020.0,0.001]
[1764701073048,0.1606666,92012.0,92011.0,0.50653298]
[1764701073245,0.1606666,92012.0,92011.0,0.00016298]
[1764701073246,0.5214666,92012.0,92011.0,0.00016298]
[1764701074646,0.5214666,92012.0,91993.0,0.50406]
[1764701074647,0.1491487,91994.0,91993.0,0.50406]
[1764701075351,0.13828,91994.0,91993.0,0.50406]
[1764701076850,0.0108681,92000.0,91999.0,0.14326]
[1764701077045,0.0804981,92000.0,91999.0,0.14326]
[1764701077442,0.00016298,92003.0,92002.0,0.14326]
[1764701077653,0.01103068,92003.0,92002.0,0.14326]
[1764701078154,0.08066068,92003.0,92002.0,0.14326]
[1764701079553,0.01103068,92003.0,92002.0,0.14326]
[1764701079945,0.01303068,92003.0,92002.0,0.14326]
[1764701080555,0.15131068,92003.0,92002.0,0.14326]
[1764701080944,0.13828,92002.0,92001.0,0.3608]
[1764701081346,0.13828,92002.0,92001.0,0.43269]
[1764701081546,0.13828,92002.0,92001.0,0.50406]
[1764701082848,0.14028,92002.0,92001.0,0.50406]
[1764701083743,0.14028,92002.0,92001.0,0.07189]
[1764701083949,0.1491489,91993.0,91992.0,0.50406]
[1764701085662,0.1491489,91993.0,91992.0,0.3608]
[1764701085961,0.1501489,91993.0,91992.0,0.43269]
[1764701086261,0.1501489,91993.0,91992.0,0.50406]
[1764701086757,0.1501489,91993.0,91992.0,0.3608]
[1764701086961,0.1501489,91993.0,91992.0,0.50406]
[1764701088256,0.1501489,91993.0,91992.0,0.14326]
[1764701090154,0.0108692,91990.0,91989.0,0.01551405]
[1764701090357,0.1491492,91990.0,91989.0,0.14326]
[1764701090859,0.001,91993.0,91992.0,0.18411]
[1764701091965,0.0108687,91995.0,91994.0,0.14326]
[1764701092263,0.1491487,91995.0,91994.0,0.14326]
[1764701093051,0.1491495,91988.0,91987.0,0.50406]
[1764701094373,0.1491495,91988.0,91987.0,0.14326]
[1764701095378,0.1501495,91988.0,91987.0,0.14326]
[1764701095577,0.13928,91988.0,91987.0,0.50406]
[1764701095780,0.001,91988.0,91987.0,0.50406]
[1764701096079,0.13928,91988.0,91987.0,0.50406]
[1764701096774,0.13928,91988.0,91987.0,0.14326]
[1764701097280,0.1501495,91988.0,91987.0,0.14326]
[1764701098479,0.1491498,91985.0,91984.0,0.07205298]
[1764701099188,0.1491498,91985.0,91984.0,0.00016298]
[1764701099681,0.1491498,91985.0,91968.0,0.3608]
[1764701099682,0.1491517,91969.0,91968.0,0.3608]
[1764701099879,0.13828,91967.0,91954.0,0.02888365]
[1764701100077,0.13828,91967.0,91958.0,0.01602755]
[1764701100279,0.1491541,91949.0,91948.0,0.50406]
[1764701100480,0.1491541,91949.0,91948.0,0.52003423]
[1764701100680,0.13828,91949.0,91948.0,0.52003423]
[1764701100873,0.00016307,91958.0,91948.0,0.52003423]
[1764701100874,0.13844307,91958.0,91948.0,0.37677423]
[1764701101075,0.13844307,91958.0,91957.0,0.50406]
[1764701101373,0.14931607,91958.0,91957.0,0.50406]
[1764701101774,0.14931607,91958.0,91957.0,0.43269]
[1764701101979,0.15031607,91958.0,91957.0,0.43269]
[1764701102182,0.15031607,91958.0,91957.0,0.50406]
[1764701102183,0.13944307,91958.0,91957.0,0.50406]
[1764701102683,0.13844307,91958.0,91957.0,0.50406]
[1764701102983,0.13944307,91958.0,91957.0,0.50406]
[1764701103585,0.13944307,91958.0,91957.0,0.43269]
[1764701103893,0.13944307,91958.0,91948.0,0.37677423]
[1764701103894,0.06324,91949.0,91948.0,0.50272423]
[1764701104091,0.1376641,91949.0,91948.0,0.43808423]
[1764701104475,0.12679,91949.0,91948.0,0.4976242]
[1764701104781,0.06324,91949.0,91948.0,0.51470606]
[1764701105173,0.06424,91949.0,91948.0,0.51546399]
[1764701105588,0.12779,91949.0,91948.0,0.51546399]
[1764701106879,0.12779,91949.0,91948.0,0.50458979]
[1764701107081,0.12779,91949.0,91948.0,0.42438379]
[1764701107480,0.001,91949.0,91948.0,0.50438987]
[1764701107879,0.000837,91949.0,91948.0,0.50438987]
[1764701108580,0.00016307,91958.0,91957.0,0.12595]
[1764701108888,0.00016307,91958.0,91957.0,0.4976231]
[1764701109272,0.01103607,91958.0,91957.0,0.49989689]
[1764701110177,0.00116307,91958.0,91957.0,0.49989689]
[1764701110877,0.00116307,91958.0,91957.0,0.88989689]
[1764701111073,0.0108712,91974.0,91973.0,0.010871]
[1764701111282,0.0108712,91974.0,91973.0,0.13909479]
[1764701111478,0.0741112,91974.0,91973.0,0.12822379]
[1764701111878,0.0741112,91974.0,91973.0,0.13909499]
[1764701112183,0.3608,91983.0,91979.0,0.12595]
[1764701112184,0.0108705,91980.0,91979.0,0.12595]
[1764701112384,0.0108705,91980.0,91979.0,0.48902379]
[1764701112590,0.01103317,91983.0,91982.0,0.12595]
[1764701113184,0.13782317,91983.0,91982.0,0.12595]
[1764701113383,0.1775915,91971.0,91970.0,0.48675]
[1764701113584,0.17531771,91971.0,91970.0,0.48675]
[1764701114581,0.17631771,91971.0,91970.0,0.48675]
[1764701115690,0.12779,91971.0,91970.0,0.4976216]
[1764701115992,0.12679,91971.0,91970.0,0.5006216]
[1764701116192,0.12779,91971.0,91970.0,0.5006216]
[1764701116893,0.0108714,91972.0,91971.0,0.12595]
[1764701117294,0.1376614,91972.0,91971.0,0.12595]
[1764701117986,0.06324,91972.0,91971.0,0.12595]
[1764701118683,0.06324,91972.0,91970.0,0.3608]
[1764701118684,0.0108715,91971.0,91970.0,0.3608]
[1764701118891,0.1376622,91965.0,91964.0,0.06147307]
[1764701119092,0.0508015,91971.0,91951.0,0.3608]
[1764701119093,0.0108737,91952.0,91951.0,0.3608]
[1764701119279,0.1376637,91952.0,91951.0,0.3608]
[1764701120093,0.1376637,91952.0,91951.0,0.48675]
[1764701120294,0.1376637,91952.0,91951.0,0.48813993]
[1764701120688,0.1376637,91952.0,91951.0,0.48883543]
[1764701120994,0.1376637,91952.0,91951.0,0.48894558]
[1764701122995,0.12679,91952.0,91951.0,0.48894558]
[1764701123596,0.12679,91952.0,91951.0,0.48994558]
[1764701124091,0.12679,91952.0,91951.0,0.49294558]
[1764701124700,0.12679,91952.0,91951.0,0.48994558]
[1764701125393,0.12779,91952.0,91951.0,0.48894558]
[1764701125899,0.06424,91952.0,91951.0,0.48894558]
[1764701126090,0.06324,91952.0,91951.0,0.48894558]
[1764701127000,0.0108735,91954.0,91953.0,0.12595]
[1764701127702,0.0108735,91954.0,91953.0,0.1287246]
[1764701127898,0.0108728,91960.0,91959.0,0.1368228]
[1764701128494,0.0108728,91960.0,91959.0,0.14017642]
[1764701128688,0.0108728,91960.0,91959.0,0.12930362]
[1764701129086,0.0741128,91960.0,91959.0,0.12930362]
[1764701129291,0.0741128,91960.0,91959.0,0.14017652]
[1764701129702,0.00016307,91961.0,91960.0,0.12595]
[1764701129905,0.00016307,91961.0,91960.0,0.48675]
[1764701130495,0.00016307,91961.0,91960.0,0.49010362]
[1764701131396,0.00016307,91961.0,91960.0,0.49110362]
[1764701131998,0.3608,91976.0,91975.0,0.136821]
[1764701132303,0.1376604,91982.0,91981.0,0.12595]
[1764701132503,0.1376604,91982.0,91981.0,0.12930362]
[1764701133595,0.1376604,91982.0,91981.0,0.00335362]
[1764701134106,0.1376604,91982.0,91981.0,0.00635362]
[1764701134305,0.1376604,91982.0,91981.0,0.00735362]
[1764701134697,0.1376604,91982.0,91981.0,0.00635362]
[1764701135500,0.1376604,91982.0,91981.0,0.00535362]
[1764701135699,0.1376604,91982.0,91981.0,0.00635362]
[1764701136703,0.11478,91973.0,91972.0,0.06064307]
[1764701136897,0.11478,91973.0,91972.0,0.00016307]
[1764701136898,0.1256512,91973.0,91972.0,0.00016307]
[1764701138013,0.1256512,91973.0,91972.0,0.00216307]
[1764701138207,0.1256512,91973.0,91972.0,0.12028307]
[1764701138398,0.2556512,91973.0,91972.0,0.00316307]
[1764701138605,0.125653,91958.0,91957.0,0.42128]
[1764701138806,0.1256541,91949.0,91948.0,0.13248608]
[1764701139812,0.0677641,91949.0,91948.0,0.13248608]
[1764701140209,0.1256541,91949.0,91948.0,0.13248608]
[1764701141306,0.1266541,91949.0,91948.0,0.13248608]
[1764701143006,0.1266541,91949.0,91948.0,0.11712]
[1764701144016,0.1266541,91949.0,91948.0,0.13357097]
[1764701144217,0.1266541,91949.0,91948.0,0.11712]
[1764701144813,0.1266541,91949.0,91948.0,0.06048]
[1764701145411,0.11478,91947.0,91946.0,0.00011197]
[1764701146813,0.11578,91947.0,91946.0,0.00011197]
[1764701147222,0.11578,91947.0,91946.0,0.11723197]
[1764701149218,0.11578,91947.0,91946.0,0.47803197]
[1764701149427,0.001,91947.0,91946.0,0.47803197]
[1764701150221,0.11578,91947.0,91946.0,0.47803197]
[1764701151323,0.001,91947.0,91946.0,0.47803197]
[1764701153827,0.0118743,91947.0,91946.0,0.47803197]
[1764701155923,0.1266543,91947.0,91946.0,0.47803197]
[1764701159232,0.001,91947.0,91946.0,0.47803197]
[1764701161130,0.11578,91947.0,91946.0,0.47803197]
[1764701161323,0.001,91947.0,91946.0,0.47803197]
[1764701161826,0.11578,91947.0,91946.0,0.06059197]
[1764701162024,0.11578,91947.0,91946.0,0.11723197]
[1764701162230,0.11478,91947.0,91946.0,0.11723197]
[1764701162526,0.001,91947.0,91946.0,0.11723197]
[1764701163125,0.00016307,91958.0,91955.0,0.0108734]
[1764701163427,0.10915307,91958.0,91957.0,0.10611]
[1764701163726,0.00016307,91958.0,91957.0,0.46691]
[1764701164032,0.00016307,91958.0,91957.0,0.4958947]
[1764701164225,0.00216307,91958.0,91957.0,0.4958947]
[1764701164429,0.00216307,91958.0,91957.0,0.46691]
[1764701164821,0.00416307,91958.0,91957.0,0.46691]
[1764701165022,0.0108717,91969.0,91968.0,0.1169818]
[1764701165231,0.0108717,91969.0,91968.0,0.9845418]
[1764701166028,0.1198611,91976.0,91974.0,0.0108711]
[1764701166221,0.1198611,91976.0,91975.0,0.10611]
[1764701167517,0.10899,91976.0,91975.0,0.10611]
[1764701167720,0.00016307,91978.0,91977.0,0.10611]
[1764701167936,0.00016307,91978.0,91977.0,0.97363]
[1764701171416,0.10915307,91978.0,91977.0,0.97363]
[1764701171927,0.00016307,91978.0,91977.0,0.97363]
[1764701172331,0.10899,91995.0,91994.0,0.10611]
[1764701173528,0.10899,91995.0,91994.0,0.10711]
[1764701173724,0.10899,91995.0,91994.0,0.12315002]
[1764701174335,0.10899,91995.0,91994.0,0.12515002]
[1764701174537,0.10899,91995.0,91994.0,0.48595002]
[1764701174740,0.00016307,92004.0,92003.0,0.1169777]
[1764701175031,0.10915307,92004.0,92003.0,0.1169777]
[1764701175231,0.10915307,92004.0,92003.0,0.05157]
[1764701175537,0.10915307,92004.0,91994.0,0.37984002]
[1764701175538,0.1198586,91995.0,91994.0,0.3638]
[1764701175737,0.1198586,91995.0,91994.0,0.88333443]
[1764701176036,0.1198586,91995.0,91994.0,0.98944443]
[1764701176433,0.05546,92000.0,91999.0,0.05454]
[1764701176737,0.0643977,92003.0,91999.0,0.05454]
[1764701176738,0.0108677,92003.0,92002.0,0.10611]
[1764701176935,0.0663277,92003.0,92002.0,0.46691]
[1764701177132,0.1198577,92003.0,92002.0,0.46691]
[1764701177325,0.10899,92003.0,92002.0,0.46691]
[1764701177521,0.00016307,92004.0,92003.0,0.1169777]
[1764701178432,0.00016307,92004.0,92003.0,0.10611]
[1764701178630,0.10915307,92004.0,92003.0,0.10611]
[1764701181424,0.00016307,92004.0,92003.0,0.10611]
[1764701186439,0.00027172,92006.0,92003.0,0.10611]
[1764701186440,0.00027172,92006.0,92005.0,0.10611]
[1764701186646,0.00027172,92006.0,92005.0,0.52611]
[1764701190250,0.00016307,92015.0,92014.0,0.1169764]
[1764701190445,0.1198554,92022.0,92021.0,0.10611]
[1764701190646,0.1198554,92022.0,92021.0,0.61251]
[1764701191038,0.10899,92022.0,92021.0,0.6233756]
[1764701191545,0.10899,92022.0,92021.0,0.61251]
[1764701191738,0.0001063,92031.0,92021.0,0.61251]
[1764701191739,0.0001063,92031.0,92030.0,0.10611]
[1764701192054,0.0001063,92031.0,92030.0,0.97331]
[1764701193547,0.1099263,92031.0,92030.0,0.97331]
[1764701193746,0.1109263,92031.0,92030.0,0.97331]
[1764701193947,0.1109263,92031.0,92030.0,0.46691]
[1764701194154,0.1109263,92031.0,92030.0,0.97327]
[1764701195147,0.10877,92022.0,92021.0,0.11066]
[1764701195450,0.1196354,92022.0,92021.0,0.11066]
[1764701195655,0.1196354,92022.0,92021.0,0.61702]
[1764701196041,0.1196354,92022.0,92021.0,0.97782]
[1764701196241,0.05441,92022.0,92021.0,0.97782]
[1764701196441,0.0011063,92031.0,92027.0,0.1215248]
[1764701196442,0.0652748,92028.0,92027.0,0.1215248]
[1764701196642,0.0108648,92028.0,92027.0,0.1215248]
[1764701197142,0.0108648,92028.0,92027.0,0.11066]
[1764701197545,0.0652748,92028.0,92027.0,0.11066]
[1764701197740,0.0662748,92028.0,92027.0,0.11066]
[1764701198357,0.0118648,92028.0,92027.0,0.11066]
[1764701198545,0.001,92028.0,92027.0,0.11066]
[1764701200662,0.10977,92028.0,92027.0,0.11066]
[1764701201342,0.52057,92028.0,92027.0,0.61694]
[1764701201549,0.52057,92028.0,92006.0,0.38983501]
[1764701201550,0.1196365,92013.0,92006.0,0.3608]
[1764701201853,0.1196365,92013.0,92012.0,0.48516307]
[1764701202253,0.5396365,92013.0,92012.0,0.00016307]
[1764701202656,0.1196386,91995.0,91994.0,0.12655443]
[1764701202858,0.10877,91995.0,91994.0,0.56759443]
[1764701203453,0.10877,91995.0,91994.0,0.92839443]
[1764701203661,0.05441,91995.0,91994.0,0.92839443]
[1764701203861,0.0108685,91997.0,91996.0,0.11066]
[1764701204161,0.00016307,92004.0,92002.0,0.11066]
[1764701204162,0.10877,92003.0,92002.0,0.11066]
[1764701204362,0.10877,92003.0,92002.0,0.47146]
[1764701205153,0.10877,92003.0,92002.0,0.47246]
[1764701206059,0.0108677,92003.0,92002.0,0.3618]
[1764701206364,0.0108677,92003.0,92002.0,0.47246]
[1764701206552,0.1196377,92003.0,92002.0,0.47246]
[1764701208668,0.1196377,92003.0,92002.0,0.97874]
[1764701208960,0.1196377,92003.0,92002.0,0.47246]
[1764701209167,0.1196377,92003.0,92002.0,0.3618]
[1764701209466,0.1196377,92003.0,92002.0,0.41623]
[1764701210571,0.1196377,92003.0,92002.0,0.05543]
[1764701211165,0.1196377,92003.0,92002.0,0.11166]
[1764701211868,0.0108677,92003.0,92002.0,0.11166]
[1764701215564,0.01103067,92004.0,92003.0,0.11066]
[1764701216558,0.06544067,92004.0,92003.0,0.11066]
[1764701218664,0.11980067,92004.0,92003.0,0.11066]
[1764701221366,0.1196386,91995.0,91994.0,0.12655443]
[1764701221572,0.1196386,91995.0,91994.0,0.63287443]
[1764701222361,0.01103067,92004.0,92003.0,0.11066]
[1764701222662,0.00016307,92004.0,92003.0,0.48066]
[1764701222864,0.3716649,92027.0,92003.0,0.48066]
[1764701222865,0.45606,92027.0,92026.0,0.09909]
[1764701223071,0.4669248,92027.0,92026.0,0.09909]
[1764701223763,0.3716648,92027.0,92026.0,0.09909]
[1764701223959,0.3716648,92027.0,92000.0,0.02903501]
[1764701223960,0.09526,92001.0,92000.0,0.02903501]
[1764701224164,0.09526,92001.0,91994.0,0.001]
[1764701224165,0.1061286,91995.0,91994.0,0.10009]
[1764701224358,0.3608,92001.0,92000.0,0.13055]
[1764701224359,0.40832,92001.0,92000.0,0.13055]
[1764701224565,0.0583878,92003.0,92002.0,0.09909]
[1764701224765,0.1061278,92003.0,92002.0,0.09909]
[1764701225169,0.09526,92003.0,92002.0,0.09909]
[1764701225361,0.00016307,92012.0,92011.0,0.1099567]
[1764701225766,0.010866,92017.0,92016.0,0.13055]
[1764701225968,0.010866,92017.0,92016.0,0.63683]
[1764701226974,0.058386,92017.0,92016.0,0.13055]
[1764701227176,0.466926,92017.0,92016.0,0.09909]
[1764701229882,0.466926,92017.0,92016.0,0.13055]
[1764701230878,0.3717713,92026.0,92025.0,0.13055]
[1764701231070,0.0001063,92026.0,92025.0,0.13055]
[1764701231277,0.010864,92035.0,92034.0,0.13055]
[1764701232067,0.3608,92036.0,92035.0,0.0108639]
[1764701232268,0.3716638,92036.0,92035.0,0.09909]
[1764701232869,0.4191838,92036.0,92035.0,0.09909]
[1764701234177,0.4669238,92036.0,92035.0,0.09909]
[1764701236579,0.106125,92026.0,92025.0,0.13055]
[1764701236980,0.010865,92026.0,92025.0,0.1414151]
[1764701237284,0.0108646,92030.0,92028.0,0.0108647]
[1764701237496,0.0108641,92034.0,92025.0,0.03146]
[1764701237680,0.3608,92036.0,92035.0,0.09909]
[1764701238388,0.3716638,92036.0,92035.0,0.09909]
[1764701238892,0.4191838,92036.0,92035.0,0.09909]
[1764701239299,0.4669238,92036.0,92035.0,0.09909]
[1764701239792,0.106125,92026.0,92025.0,0.13055]
[1764701239992,0.106125,92026.0,92025.0,0.60529]
[1764701240196,0.106125,92026.0,92025.0,0.09909]
[1764701240393,0.106126,92017.0,92016.0,0.13071307]
[1764701240894,0.106126,92017.0,92016.0,0.09925307]
[1764701241690,0.106126,92017.0,92016.0,0.13071307]
[1764701241897,0.058386,92017.0,92016.0,0.13071307]
[1764701242197,0.106126,92017.0,92016.0,0.13171307]
[1764701242393,0.106126,92017.0,92016.0,0.13371307]
[1764701242789,0.106126,92017.0,92016.0,0.10225307]
[1764701243300,0.010866,92017.0,92016.0,0.14457927]
[1764701243488,0.3608,92028.0,92025.0,0.042325]
[1764701243684,0.3716647,92028.0,92027.0,0.09909]
[1764701243895,0.3608,92028.0,92027.0,0.09909]
[1764701245091,0.45606,92028.0,92027.0,0.09909]
[1764701245486,0.04752,92017.0,92016.0,0.07970307]
[1764701245699,0.04752,92017.0,92016.0,0.63687307]
[1764701245903,0.09526,92017.0,92016.0,0.63687307]
[1764701246097,0.106126,92017.0,92016.0,0.09925307]
[1764701246397,0.106126,92017.0,92016.0,0.04824307]
[1764701246602,0.106126,92017.0,92016.0,0.05024307]
[1764701246794,0.106126,92017.0,92016.0,0.05124307]
[1764701247098,0.106126,92017.0,92016.0,0.10225307]
[1764701247685,0.0108666,92012.0,92010.0,0.29927977]
[1764701247894,0.1061266,92012.0,92011.0,0.09909]
[1764701249104,0.1061266,92012.0,92011.0,0.10109]
[1764701250404,0.1061266,92012.0,92011.0,0.10209]
[1764701250699,0.3608,92019.0,92018.0,0.1099559]
[1764701251498,0.40832,92019.0,92018.0,0.1099559]
[1764701251702,0.45606,92019.0,92018.0,0.1109559]
[1764701251901,0.45606,92019.0,92018.0,0.10009]
[1764701252504,0.45606,92019.0,92018.0,0.001]
[1764701253202,0.45606,92019.0,92018.0,0.08531]
[1764701254201,0.45606,92019.0,92018.0,0.001]
[1764701254398,0.45606,92019.0,92018.0,0.002]
[1764701254603,0.45606,92019.0,92018.0,0.08388]
[1764701254792,0.45606,92019.0,92018.0,0.08288]
[1764701254994,0.45606,92019.0,92018.0,0.08388]
[1764701255404,0.45606,92019.0,92018.0,0.16695]
[1764701255907,0.45606,92019.0,92018.0,0.16595]
[1764701256090,0.45606,92019.0,92018.0,0.16695]
[1764701256288,0.45606,92019.0,92018.0,0.16595]
[1764701256495,0.3608,92019.0,92018.0,0.16695]
[1764701256694,0.01102867,92021.0,92020.0,0.16495]
[1764701256695,0.00016307,92021.0,92020.0,0.16495]
[1764701257599,0.00016307,92021.0,92020.0,0.54495]
[1764701258094,0.00016307,92021.0,92020.0,0.54595]
[1764701258692,0.3608,92028.0,92027.0,0.1758148]
[1764701258893,0.51586,92028.0,92027.0,0.6819748]
[1764701259408,0.43818,92028.0,92027.0,0.6819748]
[1764701260197,0.43818,92028.0,92027.0,0.6829748]
[1764701260798,0.3608,92028.0,92027.0,0.6829748]
[1764701263404,0.3608,92028.0,92027.0,0.1768148]
[1764701264419,0.0002716,92046.0,92045.0,0.16495]
[1764701264710,0.0776516,92046.0,92045.0,0.67107]
[1764701264896,0.1553316,92046.0,92045.0,0.6856555]
[1764701267304,0.0002716,92046.0,92045.0,1.3964555]
[1764701268702,0.0002716,92046.0,92045.0,1.3974555]
[1764701268902,0.0002716,92046.0,92045.0,1.1274555]
[1764701269204,0.1553316,92046.0,92045.0,0.1805355]
[1764701269409,0.1553316,92046.0,92045.0,0.6866155]
[1764701270304,0.1553316,92046.0,92045.0,0.1825355]
[1764701270502,0.1553316,92046.0,92045.0,0.6885755]
[1764701270705,0.1553316,92046.0,92045.0,0.003]
[1764701270911,0.9553316,92046.0,92045.0,1e-07]
[1764701271214,0.1659237,92037.0,92017.0,0.02900196]
[1764701271410,0.165926,92017.0,92016.0,0.16495]
[1764701271719,0.1659269,92010.0,92009.0,0.16495]
[1764701272024,0.1659269,92010.0,92009.0,0.74099]
[1764701272199,0.15506,92010.0,92009.0,0.74099]
[1764701272402,0.15506,92010.0,92009.0,1.08531584]
[1764701272603,0.2046,92016.0,92015.0,0.1758163]
[1764701272804,0.15506,92016.0,92015.0,0.1758163]
[1764701273714,0.00016268,92019.0,92018.0,0.1758159]
[1764701274017,0.00016268,92019.0,92018.0,0.5358159]
[1764701275210,0.00016268,92019.0,92018.0,0.5368159]
[1764701276316,0.00416268,92019.0,92018.0,0.5368159]
[1764701276706,0.00516268,92019.0,92018.0,0.5358159]
[1764701277507,0.0108626,92047.0,92039.0,0.1758134]
[1764701277508,0.3608,92040.0,92039.0,0.1758134]
[1764701277704,0.3608,92040.0,92039.0,0.67103]
[1764701277908,0.43818,92040.0,92039.0,0.67103]
[1764701278314,0.51586,92040.0,92039.0,0.67103]
[1764701279024,0.51586,92040.0,92039.0,0.67303]
[1764701279316,0.3608,92040.0,92039.0,0.67103]
[1764701279519,0.0108624,92048.0,92045.0,0.16495]
[1764701279715,0.0776516,92046.0,92045.0,0.16495]
[1764701280318,0.1553316,92046.0,92045.0,0.16495]
[1764701280507,0.1553316,92046.0,92045.0,0.16595]
[1764701280821,0.1553316,92046.0,92045.0,0.16795]
[1764701282317,0.0002716,92046.0,92045.0,0.16795]
[1764701282720,0.0776516,92046.0,92045.0,0.16795]
[1764701283024,0.1499716,92046.0,92045.0,0.16795]
[1764701283606,0.0002716,92046.0,92045.0,0.16795]
[1764701283818,0.3608,92060.0,92045.0,0.16795]
[1764701283819,0.3608,92060.0,92059.0,0.1513611]
[1764701284018,0.41034,92070.0,92059.0,0.1513611]
[1764701284019,0.50787,92068.0,92067.0,0.0108601]
[1764701284317,0.3608,92068.0,92054.0,0.1513617]
[1764701284518,0.3608,92068.0,92067.0,0.1405]
[1764701284817,0.07475,92068.0,92067.0,0.15452803]
[1764701285018,0.3608,92077.0,92067.0,0.15452803]
[1764701285220,0.14707,92077.0,92076.0,0.1513591]
[1764701286119,0.1579281,92085.0,92084.0,0.1405]
[1764701286309,0.3608,92087.0,92075.0,0.00016298]
[1764701286310,0.07475,92076.0,92075.0,0.00016298]
[1764701286513,0.07475,92076.0,92075.0,0.14066298]
[1764701287423,0.14707,92076.0,92075.0,0.14066298]
[1764701287619,0.50787,92087.0,92086.0,0.1405]
[1764701288324,0.50787,92087.0,92077.0,0.1405]
[1764701288325,0.14707,92078.0,92077.0,0.1405]
[1764701288515,0.14707,92078.0,92077.0,0.6465]
[1764701288920,0.1579283,92083.0,92082.0,0.1405]
[1764701289113,0.14707,92076.0,92075.0,0.08073208]
[1764701289319,0.14707,92076.0,92075.0,0.65748208]
[1764701290528,0.07475,92076.0,92075.0,0.65748208]
[1764701290920,0.14707,92076.0,92075.0,0.65748208]
[1764701291828,0.07475,92081.0,92080.0,0.1513586]
[1764701292028,0.14707,92081.0,92080.0,0.1513586]
[1764701292225,0.1579285,92081.0,92080.0,0.1405]
[1764701292529,0.14707,92076.0,92075.0,0.64662298]
[1764701292731,0.14707,92076.0,92075.0,0.68662298]
[1764701293119,0.14707,92076.0,92075.0,0.96662298]
[1764701293320,0.14707,92085.0,92084.0,0.1513581]
[1764701293624,0.14707,92085.0,92084.0,0.1405]
[1764701296126,0.3716578,92087.0,92075.0,0.50612298]
[1764701296127,0.14707,92076.0,92075.0,0.64662298]
[1764701296326,0.14707,92076.0,92075.0,0.69662298]
[1764701296728,0.14707,92076.0,92075.0,0.50604298]
[1764701296930,0.14707,92076.0,92075.0,0.00016298]
[1764701297526,0.14707,92076.0,92075.0,0.00116298]
[1764701298542,0.14707,92076.0,92075.0,0.00016298]
[1764701298726,0.07232,92050.0,92049.0,0.06971]
[1764701298928,0.14707,92050.0,92049.0,0.64634]
[1764701299636,0.14707,92050.0,92049.0,0.66041799]
[1764701300138,0.14723298,92059.0,92058.0,0.1513612]
[1764701300436,0.00016298,92059.0,92058.0,0.1513612]
[1764701300632,0.00016298,92059.0,92058.0,0.5813612]
[1764701300840,0.43555,92070.0,92069.0,0.1513599]
[1764701301136,0.50787,92070.0,92069.0,0.1513599]
[1764701301732,0.50787,92070.0,92069.0,0.1405]
[1764701301934,0.55813,92070.0,92069.0,0.0108599]
[1764701302334,0.19733,92070.0,92069.0,0.1533599]
[1764701302729,0.19733,92070.0,92069.0,0.0825699]
[1764701302930,0.55813,92070.0,92069.0,0.0835699]
[1764701303730,0.55813,92070.0,92069.0,0.003]
[1764701305245,0.2081908,92061.0,92060.0,0.00016298]
[1764701305431,0.5689908,92061.0,92060.0,0.00016298]
[1764701306934,0.5689908,92061.0,92060.0,0.00316298]
[1764701307445,0.5689908,92061.0,92060.0,0.00416298]
[1764701308733,0.19733,92061.0,92060.0,0.07387298]
[1764701308938,0.50787,92070.0,92069.0,0.1513599]
[1764701309341,0.3608,92070.0,92069.0,0.1513599]
[1764701309643,0.50787,92070.0,92069.0,0.1513599]
[1764701309948,0.55813,92070.0,92069.0,0.1513599]
[1764701310137,0.55813,92070.0,92069.0,0.1523599]
[1764701310537,0.55813,92070.0,92069.0,0.1533599]
[1764701310744,0.50787,92070.0,92069.0,0.1533599]
[1764701311548,0.55813,92070.0,92069.0,0.1533599]
[1764701311745,0.55813,92070.0,92069.0,0.002]
[1764701313144,0.55813,92070.0,92069.0,0.003]
[1764701313448,0.55813,92070.0,92069.0,0.002]
[1764701313645,0.55813,92070.0,92069.0,0.003]
[1764701314342,0.55813,92070.0,92069.0,0.13179]
[1764701314745,0.55813,92070.0,92069.0,0.003]
[1764701316747,0.5689898,92070.0,92069.0,0.0138599]
[1764701317249,0.5689898,92070.0,92069.0,0.0128599]
[1764701317746,0.5689898,92070.0,92069.0,0.002]
[1764701321250,0.55813,92070.0,92069.0,0.06621]
[1764701321438,0.55813,92070.0,92069.0,0.13026]
[1764701324345,0.55813,92070.0,92069.0,0.002]
[1764701325746,0.55813,92070.0,92069.0,0.13026]
[1764701326253,0.55813,92070.0,92069.0,0.002]
[1764701330046,0.55813,92070.0,92069.0,0.13026]
[1764701330247,0.5689898,92070.0,92069.0,0.13026]
[1764701330453,0.5689898,92070.0,92069.0,0.002]
[1764701333062,0.55813,92070.0,92069.0,0.06621]
[1764701333657,0.55813,92070.0,92069.0,0.13026]
[1764701334762,0.50787,92070.0,92069.0,0.13026]
[1764701336749,0.14707,92070.0,92069.0,0.13026]
[1764701338160,0.14707,92070.0,92069.0,0.15927424]
[1764701338662,0.5438,92079.0,92078.0,0.1391188]
[1764701339560,0.5546587,92079.0,92078.0,0.1391188]
[1764701340159,0.5546587,92079.0,92078.0,0.0108588]
[1764701340555,0.4219187,92079.0,92072.0,0.0291124]
[1764701340756,0.0108595,92073.0,92072.0,0.0108594]
[1764701340959,0.1435997,92071.0,92070.0,0.0291124]
[1764701341169,0.1435997,92071.0,92060.0,0.00016298]
[1764701341170,0.1436004,92065.0,92063.0,0.0291124]
[1764701341351,0.13274,92061.0,92060.0,0.00016298]
[1764701341556,0.13274,92061.0,92060.0,0.09348538]
[1764701341751,0.13274,92061.0,92060.0,0.00016298]
[1764701342364,0.13274,92053.0,92052.0,0.0291124]
[1764701342661,0.13274,92053.0,92037.0,2.4e-06]
[1764701342662,0.1436035,92038.0,92037.0,2.4e-06]